bitfinex/quotes_SOLUSD_20250601
["timestamp","ask_amount","ask_price","bid_price","bid_amount"]
[1748765725653,21.29071149,154.02,153.99,0.8875996]
[1748765725854,14.79800802,154.03,153.99,0.8875996]
[1748765726353,14.79800802,154.03,153.99,15.68560762]
[1748765726960,21.2904859,154.03,153.99,15.68560762]
[1748765727651,21.2904859,154.03,153.99,0.8875996]
[1748765728467,14.79800802,154.03,153.99,15.68560762]
[1748765728668,14.79800802,154.04,154.0,14.79800802]
[1748765728860,14.79800802,154.05,154.0,14.79800802]
[1748765729560,14.79800802,154.04,154.0,14.79800802]
[1748765729760,14.79800802,154.05,154.01,14.79800802]
[1748765729962,170.28872264,154.07,154.02,14.79800802]
[1748765730162,14.79800802,154.06,154.01,14.79800802]
[1748765730372,14.79800802,154.05,154.01,14.79800802]
[1748765730963,21.28955651,154.05,154.01,14.79800802]
[1748765732977,6.49154849,154.05,153.99,0.8875996]
[1748765733159,14.79800802,154.03,153.99,0.8875996]
[1748765733767,14.79800802,154.04,153.99,15.68560762]
[1748765735260,6.49224177,154.03,153.99,15.68560762]
[1748765736071,21.29024979,154.03,153.99,0.8875996]
[1748765736277,21.29024979,154.03,153.99,15.68560762]
[1748765736884,21.29024979,154.03,153.99,0.8875996]
[1748765738165,14.79800802,154.02,153.99,0.8875996]
[1748765739133,16.22884228,154.05,153.99,0.8875996]
[1748765739335,14.79800802,154.03,153.99,0.8875996]
[1748765739491,14.79800802,154.03,153.99,15.68560762]
[1748765740305,16.22884228,154.05,153.99,15.68560762]
[1748765740306,14.79800802,154.05,154.0,14.79800802]
[1748765741293,6.4918203,154.04,154.0,14.79800802]
[1748765742523,14.79800802,154.06,154.01,14.79800802]
[1748765742726,14.79800802,154.06,154.02,14.79800802]
[1748765742891,21.28856426,154.07,154.02,14.79800802]
[1748765745499,21.28856426,154.07,154.02,21.29065806]
[1748765746293,18.55817935,154.09,154.03,14.79800802]
[1748765746499,22.99618737,154.09,154.04,14.79800802]
[1748765747098,14.79800802,154.08,154.04,14.79800802]
[1748765749221,21.28818618,154.08,154.04,14.79800802]
[1748765749729,6.49017816,154.08,154.04,14.79800802]
[1748765750029,29.48592845,154.09,154.05,14.79800802]
[1748765750326,8.19817935,154.09,154.06,14.79800802]
[1748765751005,8.19817935,154.09,154.05,14.79800802]
[1748765752105,8.19817935,154.09,154.05,21.28922932]
[1748765754909,8.19817935,154.09,154.06,14.79800802]
[1748765755322,6.48845055,154.12,154.07,14.79800802]
[1748765755519,14.79800802,154.11,154.06,21.28893444]
[1748765755809,14.79800802,154.11,154.06,14.79800802]
[1748765756322,14.79800802,154.11,154.05,6.49123667]
[1748765756527,14.79800802,154.11,154.06,14.79800802]
[1748765757236,6.48929266,154.1,154.06,14.79800802]
[1748765757410,6.48929266,154.1,154.04,47.28967553]
[1748765757411,14.79800802,154.09,154.04,47.28967553]
[1748765759822,21.2881252,154.09,154.04,40.79800802]
[1748765760415,14.79800802,154.1,154.05,14.79800802]
[1748765761162,22.99537368,154.11,154.0,89.6]
[1748765761350,14.79800802,154.05,153.99,7.38136196]
[1748765761670,18.933972,154.1,153.99,7.38136196]
[1748765761671,14.79800802,154.03,153.99,0.8875996]
[1748765762063,14.79800802,154.01,153.99,0.8875996]
[1748765763567,21.29122665,154.01,153.99,0.8875996]
[1748765766601,14.79800802,154.0,153.99,0.8875996]
[1748765767162,48.52998804,154.0,153.99,0.8875996]
[1748765768464,15.08233116,154.0,153.99,0.8875996]
[1748765768689,21.29151451,154.0,153.99,0.8875996]
[1748765772006,14.79800802,154.0,153.99,0.8875996]
[1748765772210,43.07687798,154.03,153.99,0.8875996]
[1748765772211,14.79800802,154.01,153.99,0.8875996]
[1748765775065,16.79234405,154.03,153.99,0.8875996]
[1748765775269,14.79800802,154.02,153.99,0.8875996]
[1748765777767,16.79234405,154.03,153.99,0.8875996]
[1748765778002,14.79800802,154.02,153.99,0.8875996]
[1748765778384,25.09800802,154.03,153.99,0.8875996]
[1748765778568,31.5902752,154.03,153.99,0.8875996]
[1748765779076,14.79800802,154.02,153.99,0.8875996]
[1748765780197,25.09800802,154.03,153.99,0.8875996]
[1748765780395,14.79800802,154.04,154.0,14.79800802]
[1748765780602,54.55800802,154.05,154.01,14.79800802]
[1748765780899,14.79800802,154.05,154.01,14.79800802]
[1748765781077,16.81058423,154.07,154.02,14.79800802]
[1748765781271,14.79800802,154.06,154.02,14.79800802]
[1748765782376,13.52801508,154.08,154.03,14.79800802]
[1748765782575,6.48985315,154.09,154.04,14.79800802]
[1748765782778,21.28742602,154.1,154.05,14.79800802]
[1748765782983,21.28742602,154.1,154.06,14.79800802]
[1748765783180,21.28742602,154.1,154.05,14.79800802]
[1748765783986,14.79800802,154.09,154.02,18.64964886]
[1748765784378,21.28807322,154.09,154.04,14.79800802]
[1748765785307,31.60700201,154.11,154.06,14.79800802]
[1748765785615,31.60700201,154.11,154.07,14.79800802]
[1748765785804,21.28700201,154.11,154.07,14.79800802]
[1748765786510,14.79800802,154.11,154.07,14.79800802]
[1748765786800,14.79800802,154.12,154.08,14.79800802]
[1748765787179,21.28613694,154.13,154.08,14.79800802]
[1748765787374,14.79800802,154.12,154.08,14.79800802]
[1748765788700,21.28673011,154.12,154.08,14.79800802]
[1748765789587,6.48872209,154.12,154.08,14.79800802]
[1748765790102,21.28618535,154.13,154.08,14.79800802]
[1748765790400,14.79800802,154.12,154.08,14.79800802]
[1748765790604,21.28618535,154.13,154.08,14.79800802]
[1748765791008,14.79800802,154.11,154.05,10.3]
[1748765791312,14.79800802,154.11,154.06,14.79800802]
[1748765791712,14.79800802,154.11,154.07,14.79800802]
[1748765792286,14.79800802,154.11,154.06,14.79800802]
[1748765794315,6.48929266,154.1,154.06,14.79800802]
[1748765794624,21.28702804,154.11,154.06,14.79800802]
[1748765796714,22.70810354,154.13,154.06,14.79800802]
[1748765797012,14.79800802,154.12,154.08,14.79800802]
[1748765798287,21.28645923,154.12,154.08,14.79800802]
[1748765798682,21.28645923,154.12,154.07,6.49053554]
[1748765798887,21.28645923,154.12,154.08,14.79800802]
[1748765799098,6.48845121,154.12,154.08,14.79800802]
[1748765799319,21.28645923,154.12,154.08,14.79800802]
[1748765800216,6.48845121,154.12,154.08,14.79800802]
[1748765800792,14.79800802,154.13,154.09,14.79800802]
[1748765801194,21.28522733,154.15,154.11,14.79800802]
[1748765801493,6.48721931,154.15,154.11,14.79800802]
[1748765801704,21.28522733,154.15,154.1,14.79800802]
[1748765801908,14.79800802,154.14,154.08,25.13976116]
[1748765802110,14.79800802,154.14,154.1,14.79800802]
[1748765802420,14.79800802,154.13,154.09,14.79800802]
[1748765802605,14.79800802,154.14,154.09,14.79800802]
[1748765803208,6.48721931,154.15,154.09,14.79800802]
[1748765803515,21.28567291,154.14,154.09,14.79800802]
[1748765803733,14.79800802,154.13,154.08,14.79800802]
[1748765804007,14.79800802,154.11,154.06,40.79800802]
[1748765804701,14.79800802,154.12,154.07,14.79800802]
[1748765804902,22.70668655,154.14,154.07,14.79800802]
[1748765805106,14.79800802,154.13,154.08,14.79800802]
[1748765805291,22.70668655,154.14,154.06,32.49089801]
[1748765805292,14.79800802,154.12,154.07,14.79800802]
[1748765805695,6.48887158,154.11,154.07,14.79800802]
[1748765809326,6.48851234,154.12,154.08,14.79800802]
[1748765811146,14.79800802,154.14,154.09,14.79800802]
[1748765812026,6.48772378,154.14,154.1,14.79800802]
[1748765812405,21.2857318,154.14,154.09,14.79800802]
[1748765812607,6.48772378,154.14,154.09,14.79800802]
[1748765812824,21.2857318,154.14,154.09,14.79800802]
[1748765813606,6.48772378,154.14,154.09,14.79800802]
[1748765813931,14.79800802,154.14,154.09,14.79800802]
[1748765816028,6.48802958,154.13,154.09,14.79800802]
[1748765817874,14.79800802,154.14,154.09,14.79800802]
[1748765818669,21.28590531,154.14,154.09,21.28766227]
[1748765819067,14.79800802,154.13,154.07,25.14004779]
[1748765819365,14.79800802,154.11,154.07,14.79800802]
[1748765819582,14.79800802,154.11,154.06,26.0]
[1748765819871,22.70691895,154.14,154.06,26.0]
[1748765819872,14.79800802,154.09,154.06,26.0]
[1748765820230,14.79800802,154.08,154.02,16.79234015]
[1748765820461,14.79800802,154.08,154.03,14.79800802]
[1748765820762,21.2883851,154.08,154.03,14.79800802]
[1748765822761,14.79800802,154.07,154.02,51.09800802]
[1748765823068,21.2883851,154.08,154.03,14.79800802]
[1748765824137,14.79800802,154.07,154.02,51.09800802]
[1748765824343,14.79800802,154.07,154.02,36.3]
[1748765824578,14.79800802,154.07,154.02,51.09800802]
[1748765824732,6.49097754,154.06,154.02,51.09800802]
[1748765824932,21.28870572,154.07,154.02,51.09800802]
[1748765825248,21.28829848,154.08,154.03,14.79800802]
[1748765825966,6.49029046,154.08,154.03,14.79800802]
[1748765826163,54.51800802,154.1,154.06,14.79800802]
[1748765827159,21.28743414,154.1,154.06,14.79800802]
[1748765827651,21.28743414,154.1,154.05,14.79800802]
[1748765828157,14.79800802,154.09,154.04,14.79800802]
[1748765828693,14.79800802,154.08,154.04,14.79800802]
[1748765829733,21.28820271,154.08,154.04,14.79800802]
[1748765830758,6.49019469,154.08,154.04,14.79800802]
[1748765832966,6.49019469,154.08,154.05,14.79800802]
[1748765833858,6.48985628,154.09,154.05,14.79800802]
[1748765834045,6.48896329,154.11,154.07,14.79800802]
[1748765834766,21.28697131,154.11,154.07,14.79800802]
[1748765835651,21.28697131,154.11,154.06,14.79800802]
[1748765835853,14.79800802,154.09,154.05,40.79800802]
[1748765836580,14.79800802,154.09,154.02,118.54964886]
[1748765836581,14.79800802,154.07,154.02,40.79800802]
[1748765836740,14.79800802,154.06,154.02,26.0]
[1748765837145,14.79800802,154.05,154.0,14.79800802]
[1748765837554,6.4918203,154.04,154.0,40.79800802]
[1748765837753,21.28982832,154.04,154.0,26.0]
[1748765837960,21.28982832,154.04,153.99,25.98560762]
[1748765841265,14.79800802,154.03,153.99,25.98560762]
[1748765841473,14.79800802,154.03,153.99,15.68560762]
[1748765841653,14.79800802,154.01,153.99,0.8875996]
[1748765842074,21.29143266,154.01,153.99,0.8875996]
[1748765843550,14.79800802,154.0,153.99,0.8875996]
[1748765843968,54.49800802,154.0,153.99,0.8875996]
[1748765845473,60.99151451,154.0,153.99,0.8875996]
[1748765845676,120.72349453,154.0,153.99,0.8875996]
[1748765845883,14.79800802,153.92,153.87,8.0738]
[1748765846187,15.08233116,153.9,153.83,22.87180802]
[1748765847170,39.78,153.91,153.83,8.0738]
[1748765847371,21.58005695,153.9,153.83,22.87180802]
[1748765847590,40.22970581,153.9,153.83,8.0738]
[1748765848169,40.22970581,153.9,153.8,32.50192871]
[1748765848377,40.22970581,153.9,153.8,40.79800802]
[1748765848771,0.28432314,153.9,153.83,14.79800802]
[1748765849084,61.42005695,153.9,153.83,14.79800802]
[1748765849588,54.92233116,153.9,153.83,14.79800802]
[1748765849763,54.92233116,153.9,153.85,14.79800802]
[1748765849764,54.63800802,153.9,153.85,14.79800802]
[1748765850183,54.63800802,153.9,153.85,6.49983109]
[1748765851283,54.63800802,153.9,153.86,6.49930716]
[1748765851766,54.94964886,153.93,153.86,6.49930716]
[1748765851767,10.3,153.93,153.86,22.61160802]
[1748765851967,14.79800802,153.92,153.89,9.03661495]
[1748765852182,25.09800802,153.93,153.89,23.83462297]
[1748765852486,10.3,153.93,153.9,14.79800802]
[1748765852791,14.79800802,153.94,153.9,14.79800802]
[1748765853585,14.79800802,153.94,153.91,6.49730361]
[1748765854686,14.79800802,153.95,153.91,6.49730361]
[1748765854893,39.88,153.96,153.91,6.49730361]
[1748765855103,10.3,153.97,153.91,21.29531163]
[1748765855286,14.79800802,153.96,153.92,14.79800802]
[1748765855602,18.64964886,154.02,153.95,6.49561545]
[1748765855603,39.9,154.01,153.95,6.49561545]
[1748765855801,14.79800802,153.98,153.95,6.49561545]
[1748765857898,14.79800802,153.96,153.92,40.79800802]
[1748765858280,14.79800802,153.96,153.92,47.29478726]
[1748765858483,14.79800802,153.97,153.92,47.29478726]
[1748765858724,14.79800802,153.97,153.93,14.79800802]
[1748765859698,14.79800802,153.97,153.94,6.49603741]
[1748765860777,14.79800802,153.97,153.93,6.4963391]
[1748765861396,14.79800802,153.97,153.93,21.29434712]
[1748765862592,14.79800802,153.98,153.93,21.29434712]
[1748765862785,14.79800802,153.97,153.93,21.29434712]
[1748765863004,14.79800802,153.97,153.93,6.4963391]
[1748765863308,14.79800802,153.97,153.93,21.29434712]
[1748765864179,14.79800802,153.97,153.93,6.4963391]
[1748765864380,21.29408348,153.94,153.89,2.53848853]
[1748765864607,14.79800802,153.92,153.89,2.53848853]
[1748765864982,54.69800802,153.93,153.89,9.03651171]
[1748765865696,54.69800802,153.93,153.89,23.83451973]
[1748765865899,54.69800802,153.93,153.89,9.03651171]
[1748765866109,54.69800802,153.93,153.89,23.83451973]
[1748765867389,54.69800802,153.93,153.89,2.53848853]
[1748765867811,14.79800802,153.92,153.89,2.53848853]
[1748765868899,14.79800802,153.91,153.89,2.53848853]
[1748765869508,21.29500362,153.92,153.89,2.53848853]
[1748765869716,14.79800802,153.92,153.89,2.53848853]
[1748765871008,39.9,153.93,153.89,9.0365996]
[1748765871191,54.69800802,153.93,153.89,9.0365996]
[1748765871614,163.79800802,153.95,153.9,14.79800802]
[1748765871786,149.0,153.95,153.91,14.79800802]
[1748765871988,188.9,153.95,153.91,14.79800802]
[1748765872694,14.79800802,153.93,153.89,2.53848853]
[1748765872899,39.9,153.95,153.89,2.53848853]
[1748765872900,14.79800802,153.91,153.89,2.53848853]
[1748765873289,14.79800802,153.92,153.89,2.53848853]
[1748765874415,14.79800802,153.93,153.89,9.03657065]
[1748765874616,14.79800802,153.94,153.89,23.83457867]
[1748765874796,14.79800802,153.93,153.89,23.83457867]
[1748765876209,21.29450071,153.93,153.89,2.53848853]
[1748765876410,14.79800802,153.92,153.89,2.53848853]
[1748765876619,14.79800802,153.91,153.89,2.53848853]
[1748765877502,14.79800802,153.9,153.89,2.53848853]
[1748765880398,54.71800802,153.91,153.89,2.53848853]
[1748765880625,61.21543499,153.91,153.89,2.53848853]
[1748765880921,54.71800802,153.91,153.89,2.53848853]
[1748765881823,39.92,153.91,153.89,2.53848853]
[1748765882124,54.69800802,153.92,153.89,2.53848853]
[1748765882520,39.9,153.92,153.89,2.53848853]
[1748765882702,54.69800802,153.92,153.89,2.53848853]
[1748765883211,14.79800802,153.91,153.89,2.53848853]
[1748765885101,54.69800802,153.92,153.89,2.53848853]
[1748765885306,61.1949902,153.92,153.89,2.53848853]
[1748765885828,25.19800802,153.93,153.89,9.03653114]
[1748765886205,25.19800802,153.93,153.89,23.83453916]
[1748765887019,10.4,153.97,153.9,14.79800802]
[1748765887207,54.69800802,153.96,153.91,14.79800802]
[1748765887407,14.79800802,153.95,153.9,14.79800802]
[1748765888032,14.79800802,153.95,153.9,21.2953711]
[1748765888211,54.69800802,153.95,153.9,21.2953711]
[1748765889113,14.79800802,153.95,153.9,21.2953711]
[1748765889316,14.79800802,153.95,153.91,21.29515267]
[1748765889518,54.69800802,153.95,153.91,21.29515267]
[1748765890229,14.79800802,153.93,153.89,18.97919655]
[1748765890414,14.79800802,153.92,153.89,4.18118853]
[1748765891443,14.79800802,153.92,153.89,2.53848853]
[1748765891735,14.79800802,153.93,153.89,23.83452763]
[1748765891921,14.79800802,153.94,153.89,23.83452763]
[1748765892122,14.79800802,153.94,153.9,14.79800802]
[1748765893846,54.69800802,153.94,153.9,14.79800802]
[1748765894040,54.69800802,153.94,153.9,21.29566303]
[1748765895540,54.69800802,153.94,153.89,17.33649655]
[1748765895541,14.79800802,153.93,153.89,17.33649655]
[1748765896662,54.69800802,153.94,153.9,14.79800802]
[1748765897466,54.69800802,153.94,153.9,21.29557201]
[1748765899363,10.4,153.97,153.93,14.79800802]
[1748765899687,50.3,153.97,153.93,14.79800802]
[1748765899839,65.09800802,153.97,153.93,14.79800802]
[1748765900245,71.59289222,153.97,153.93,14.79800802]
[1748765901243,65.09800802,153.97,153.93,14.79800802]
[1748765901853,65.09800802,153.97,153.93,21.29437739]
[1748765902563,65.05800802,153.97,153.93,21.29437739]
[1748765903644,71.5527863,153.97,153.93,14.79800802]
[1748765903837,65.05800802,153.97,153.93,21.29436209]
[1748765904053,50.26,153.97,153.93,21.29436209]
[1748765906069,10.4,153.97,153.93,21.29436209]
[1748765906369,50.26,153.97,153.93,21.29436209]
[1748765906879,50.26,153.97,153.94,14.79800802]
[1748765907077,14.79800802,153.96,153.89,2.53848853]
[1748765907283,14.79800802,153.95,153.91,14.79800802]
[1748765907579,14.79800802,153.95,153.9,14.79800802]
[1748765907745,14.79800802,153.94,153.9,14.79800802]
[1748765909266,6.49645942,153.93,153.9,14.79800802]
[1748765911747,14.79800802,153.92,153.89,2.53848853]
[1748765914167,6.49730361,153.91,153.89,2.53848853]
[1748765920695,149.0,153.96,153.9,14.79800802]
[1748765920877,6.49519355,153.96,153.92,14.79800802]
[1748765921062,39.82,153.95,153.92,14.79800802]
[1748765921684,39.82,153.95,153.91,14.79800802]
[1748765921867,61.11384761,153.95,153.91,14.79800802]
[1748765922270,14.79800802,153.94,153.89,2.53848853]
[1748765922473,14.79800802,153.94,153.9,14.79800802]
[1748765922686,61.11384761,153.95,153.9,14.79800802]
[1748765922863,14.79800802,153.94,153.89,2.53848853]
[1748765923061,46.31583959,153.95,153.89,17.33649655]
[1748765923276,14.79800802,153.94,153.9,14.79800802]
[1748765923977,61.1342566,153.94,153.9,14.79800802]
[1748765924989,6.49624858,153.94,153.9,14.79800802]
[1748765925154,39.82,153.94,153.91,14.79800802]
[1748765925360,25.19800802,153.97,153.92,14.79800802]
[1748765925668,25.19800802,153.97,153.93,14.79800802]
[1748765925863,39.82,153.96,153.93,14.79800802]
[1748765926056,46.31534491,153.96,153.93,14.79800802]
[1748765927070,46.31534491,153.96,153.92,14.79800802]
[1748765928795,10.4,153.97,153.93,14.79800802]
[1748765929081,50.24,153.97,153.94,14.79800802]
[1748765929384,71.53282158,153.97,153.93,14.79800802]
[1748765932800,61.13282158,153.97,153.93,14.79800802]
[1748765933702,21.29282158,153.97,153.93,14.79800802]
[1748765933879,39.8,153.96,153.93,14.79800802]
[1748765934889,61.09331104,153.96,153.92,14.79800802]
[1748765935999,39.8,153.96,153.93,14.79800802]
[1748765936594,39.82,153.99,153.95,14.79800802]
[1748765936797,39.84,154.0,153.98,14.79800802]
[1748765936993,39.84,154.0,153.97,14.79800802]
[1748765938999,39.84,154.0,153.96,14.79800802]
[1748765939000,46.3336246,154.0,153.96,14.79800802]
[1748765939380,61.13163262,154.0,153.94,7.6697]
[1748765939585,14.79800802,153.99,153.94,22.46770802]
[1748765940014,6.49434991,153.98,153.94,22.46770802]
[1748765940808,6.49434991,153.98,153.94,14.79800802]
[1748765941009,14.79800802,153.97,153.93,14.79800802]
[1748765941355,6.49434991,153.98,153.94,14.79800802]
[1748765941356,39.82,153.96,153.94,14.79800802]
[1748765941519,39.82,153.96,153.95,14.79800802]
[1748765943715,39.82,153.96,153.94,14.79800802]
[1748765944898,39.82,153.96,153.95,14.79800802]
[1748765945823,6.49318113,154.01,153.95,14.79800802]
[1748765946118,39.84,154.0,153.97,14.79800802]
[1748765947301,46.33355561,154.0,153.97,14.79800802]
[1748765948427,46.33355561,154.0,153.96,14.79800802]
[1748765948813,46.31355561,154.0,153.97,14.79800802]
[1748765949532,6.49325642,154.01,153.97,14.79800802]
[1748765949831,39.82,154.0,153.97,14.79800802]
[1748765951797,46.29325642,154.01,153.97,14.79800802]
[1748765952002,61.09126444,154.01,153.97,14.79800802]
[1748765953599,39.8,154.01,153.97,14.79800802]
[1748765953904,61.09116203,154.01,153.97,14.79800802]
[1748765954715,54.59800802,154.01,153.97,21.29277112]
[1748765955126,54.57800802,154.01,153.97,21.29277112]
[1748765955318,14.79800802,154.01,153.97,21.29277112]
[1748765955524,61.07122016,154.01,153.97,14.79800802]
[1748765956607,46.27321214,154.01,153.97,14.79800802]
[1748765957399,39.78,154.01,153.97,6.49475538]
[1748765957617,39.78,154.01,153.99,14.79800802]
[1748765957935,46.27195154,154.04,153.98,26.0]
[1748765958150,10.34,154.06,153.99,26.0]
[1748765958306,14.79800802,154.09,153.99,44.64964886]
[1748765958507,39.78,154.08,153.98,1.5438]
[1748765958710,33.8906169,154.1,153.99,0.14216157]
[1748765958918,6.4897138,154.09,153.99,0.28432314]
[1748765959638,17.6663556,154.1,153.99,0.28432314]
[1748765959639,10.34,154.1,153.99,148.313972]
[1748765960229,6.48909826,154.11,153.99,148.313972]
[1748765961122,6.48909826,154.11,154.02,0.28432314]
[1748765962335,6.48909826,154.11,154.02,26.28432314]
[1748765963032,6.48909826,154.11,154.02,32.77698643]
[1748765963438,6.48909826,154.11,154.02,122.37698643]
[1748765963913,6.48909826,154.11,154.02,138.60864465]
[1748765964914,6.48845055,154.12,154.04,0.14216157]
[1748765966062,6.48845055,154.12,154.05,6.49139889]
[1748765967338,6.48845055,154.12,154.04,6.49167568]
[1748765968657,1.6184,154.11,154.04,6.49167568]
[1748765969425,8.1076206,154.11,154.04,6.49167568]
[1748765976138,8.1076206,154.11,154.03,18.64964886]
[1748765976341,8.1076206,154.11,154.02,121.6894]
[1748765977149,24.32979956,154.11,154.02,128.18190993]
[1748765978555,24.32979956,154.11,154.02,122.09250993]
[1748765980764,8.1076206,154.11,154.03,25.14153734]
[1748765983754,6.48845055,154.12,154.03,25.14153734]
[1748765985971,22.70957694,154.12,154.03,25.14153734]
[1748765986168,22.70957694,154.12,154.02,32.49250571]
[1748765987258,22.71252432,154.1,154.01,16.83300297]
[1748765987467,22.71252432,154.1,154.01,10.34]
[1748765987767,22.71252432,154.1,153.97,39.64]
[1748765987768,0.28432314,154.08,153.98,6.49419174]
[1748765987967,39.92432314,154.08,153.98,6.49419174]
[1748765988163,39.92432314,154.08,153.98,32.49419174]
[1748765988970,6.49055624,154.07,153.98,32.49419174]
[1748765992370,6.49055624,154.07,154.0,6.49350649]
[1748765992957,49.9,154.09,154.01,18.64964886]
[1748765992958,16.73005195,154.09,154.01,18.64964886]
[1748765994380,16.73005195,154.09,154.02,6.49266329]
[1748765995377,16.73005195,154.09,154.01,6.49308486]
[1748765996673,16.73005195,154.09,154.0,6.63566806]
[1748765999281,0.28432314,154.08,153.99,89.6]
[1748765999451,26.0,154.06,153.97,16.73461214]
[1748765999660,26.0,154.05,153.94,6.49603741]
[1748765999873,10.52432314,154.04,153.94,6.49603741]
[1748766000899,10.52432314,154.04,153.94,18.64964886]
[1748766001058,0.28432314,154.0,153.89,2.53848853]
[1748766001258,22.72874861,153.99,153.9,32.49760662]
[1748766001464,72.62874861,153.99,153.89,2.53848853]
[1748766002368,26.28432314,153.98,153.89,2.53848853]
[1748766002668,26.0,153.96,153.89,2.53848853]
[1748766002880,0.28432314,153.95,153.89,2.53848853]
[1748766003475,6.49603741,153.94,153.89,2.53848853]
[1748766005372,6.49561545,153.95,153.89,9.03661931]
[1748766006768,6.49561545,153.95,153.89,2.53848853]
[1748766008967,32.49522836,153.96,153.89,9.03658428]
[1748766010089,32.49522836,153.96,153.89,2.53848853]
[1748766012364,6.49603741,153.94,153.89,2.53848853]
[1748766014402,6.49603741,153.94,153.89,9.0366159]
[1748766014705,6.49603741,153.94,153.89,2.53848853]
[1748766015194,6.4956926,153.95,153.89,9.03660683]
[1748766016271,6.4956926,153.95,153.89,2.53848853]
[1748766018290,10.54432314,153.94,153.89,2.53848853]
[1748766020591,6.49645942,153.93,153.89,2.53848853]
[1748766023071,16.75614041,153.94,153.89,2.53848853]
[1748766023277,10.26,153.94,153.89,2.53848853]
[1748766024185,10.26,153.94,153.89,9.03656636]
[1748766025293,16.75607311,153.94,153.89,9.03656636]
[1748766026581,16.75607311,153.94,153.89,2.53848853]
[1748766029871,0.28432314,153.93,153.89,2.53848853]
[1748766031105,6.49688149,153.92,153.89,2.53848853]
[1748766038011,22.73908523,153.92,153.89,2.53848853]
[1748766040300,32.49659814,153.93,153.89,2.53848853]
[1748766041587,10.26,153.94,153.89,9.03661483]
[1748766041813,10.26,153.94,153.89,10.57471483]
[1748766042819,16.75605875,153.94,153.89,10.57471483]
[1748766043004,16.75605875,153.94,153.89,2.53848853]
[1748766043392,16.75605875,153.94,153.89,9.03663167]
[1748766045586,6.49561545,153.95,153.89,9.03662861]
[1748766046014,0.28432314,153.94,153.89,2.53848853]
[1748766047413,6.49645942,153.93,153.89,2.53848853]
[1748766050529,16.75610799,153.94,153.89,9.03657734]
[1748766051015,10.26,153.94,153.89,9.03657734]
[1748766051601,16.75606231,153.94,153.89,9.03657734]
[1748766052601,10.26,153.94,153.89,9.03657734]
[1748766054926,16.75606317,153.94,153.89,9.03657734]
[1748766055928,16.75606317,153.94,153.89,2.53848853]
[1748766057317,16.75606317,153.94,153.89,9.03655164]
[1748766058317,10.26,153.94,153.89,9.03655164]
[1748766059719,16.75612271,153.94,153.89,9.03655164]
[1748766059926,6.49612271,153.94,153.89,9.03655164]
[1748766060933,26.0,153.96,153.89,9.03655164]
[1748766060934,6.49561545,153.95,153.89,9.03655164]
[1748766062329,6.49561545,153.95,153.89,2.53848853]
[1748766062910,0.28432314,153.94,153.89,2.53848853]
[1748766063939,6.49645942,153.93,153.89,2.53848853]
[1748766064830,16.75645942,153.93,153.89,2.53848853]
[1748766068738,0.28432314,153.92,153.89,2.53848853]
[1748766068973,39.96432314,153.92,153.89,2.53848853]
[1748766069114,26.28432314,153.9,153.89,2.53848853]
[1748766070042,32.78204893,153.9,153.89,2.53848853]
[1748766080551,155.49739865,153.91,153.89,2.53848853]
[1748766080749,149.0,153.91,153.89,2.53848853]
[1748766081055,10.26,153.93,153.89,15.3349666]
[1748766081235,15.09950774,153.94,153.89,15.3349666]
[1748766082255,15.09950774,153.94,153.89,31.58033666]
[1748766086328,15.09950774,153.94,153.89,15.3349666]
[1748766086528,15.09950774,153.94,153.89,8.83698853]
[1748766087153,21.59563209,153.94,153.89,15.33504107]
[1748766087344,15.09950774,153.94,153.89,15.33504107]
[1748766088962,21.59559122,153.94,153.89,15.33504107]
[1748766089140,21.59559122,153.94,153.89,8.83698853]
[1748766089936,21.59559122,153.94,153.89,15.33492775]
[1748766090656,15.09950774,153.94,153.89,15.33492775]
[1748766092462,15.09950774,153.94,153.9,44.79181043]
[1748766092735,1.5902,154.01,153.9,44.79181043]
[1748766092736,63.99613415,154.01,153.9,34.2107]
[1748766092947,26.0,154.0,153.9,34.2107]
[1748766093154,6.49434991,153.98,153.9,39.12954848]
[1748766093356,26.28432314,153.97,153.9,6.632]
[1748766093535,39.68,153.96,153.9,6.632]
[1748766095553,6.49561545,153.95,153.89,9.03663476]
[1748766099647,56.43532886,153.96,153.89,9.03663476]
[1748766099867,10.26,153.96,153.89,9.03663476]
[1748766100575,16.75542,153.96,153.89,9.03663476]
[1748766101279,6.49542,153.96,153.89,9.03663476]
[1748766101570,32.49488278,153.97,153.89,9.03663476]
[1748766103947,48.73181205,153.97,153.89,9.03663476]
[1748766104572,32.49488278,153.97,153.89,9.03663476]
[1748766106478,6.49488278,153.97,153.89,9.03663476]
[1748766106690,10.26,153.98,153.9,18.64964886]
[1748766107785,10.26,153.98,153.91,6.636]
[1748766108288,10.26,153.98,153.92,6.49688149]
[1748766109073,16.75440584,153.98,153.92,6.49688149]
[1748766113094,16.75440584,153.98,153.91,6.49730361]
[1748766113289,10.26,153.98,153.92,18.64964886]
[1748766114007,47.80592869,154.0,153.92,18.64964886]